bitfinex-derivatives/quotes_SOLF0:USTF0_20250319
["timestamp","ask_amount","ask_price","bid_price","bid_amount"]
[1742413411765,82.05873878,132.66,132.64,7.538]
[1742413411963,82.05873878,132.66,132.61,32.26]
[1742413412267,82.05873878,132.66,132.62,7.5391]
[1742413412460,32.28769789,132.65,132.62,0.05065067]
[1742413412655,32.28769789,132.65,132.57,4.1438]
[1742413412855,7.5385,132.64,132.57,4.1438]
[1742413413064,226.2,132.63,132.57,4.1438]
[1742413413262,32.24,132.62,132.57,4.1438]
[1742413413564,32.24,132.62,132.61,7.5394]
[1742413413762,226.2,132.63,132.59,55.8731318]
[1742413413964,0.05086837,132.61,132.6,7.5405]
[1742413416067,365.0,132.68,132.6,7.5405]
[1742413416068,32.24,132.67,132.6,32.24]
[1742413416266,32.24,132.67,132.6,66.62512674]
[1742413416767,32.24,132.66,132.6,32.24]
[1742413417269,0.04989539,132.64,132.62,0.04794838]
[1742413419062,0.04989539,132.64,132.63,7.5388]
[1742413419257,226.2,132.68,132.63,34.38512674]
[1742413419461,226.2,132.68,132.67,7.5365]
[1742413420466,226.2,132.68,132.66,7.59308676]
[1742413420868,226.2,132.68,132.66,0.05628676]
[1742413421270,226.2,132.68,132.67,7.5365]
[1742413421468,226.2,132.68,132.66,0.05628676]
[1742413422666,226.2,132.68,132.62,7.5391]
[1742413422667,32.22,132.67,132.62,7.5391]
[1742413422871,32.22,132.67,132.59,4.0619]
[1742413423073,36.2313,132.67,132.58,4.2651]
[1742413423276,34.38512674,132.64,132.54,38.28892674]
[1742413423570,32.22,132.63,132.54,70.50892674]
[1742413423967,0.05212839,132.6,132.57,0.05737989]
[1742413424767,7.5352,132.7,132.58,83.79769011]
[1742413424970,82.59114632,132.62,132.61,34.38512674]
[1742413425168,38.02883549,132.66,132.61,66.60512674]
[1742413425369,25.16963549,132.66,132.65,34.38512674]
[1742413425674,9.90873549,132.66,132.65,74.14282674]
[1742413426974,226.2,132.72,132.65,74.14512674]
[1742413427174,226.2,132.72,132.67,55.78440526]
[1742413427375,3.8856,132.73,132.68,32.22]
[1742413427776,11.4189,132.73,132.68,32.22]
[1742413428276,0.04891059,132.72,132.69,0.05107048]
[1742413428779,0.04891059,132.72,132.71,7.5343]
[1742413428978,0.04891059,132.72,132.71,39.7543]
[1742413430671,0.04891059,132.72,132.71,32.22]
[1742413431374,0.04891059,132.72,132.71,39.7543]
[1742413432567,0.04891059,132.72,132.71,32.22]
[1742413432967,0.04891059,132.72,132.69,0.05107048]
[1742413435078,0.04891059,132.72,132.66,32.2]
[1742413435373,3.938,132.72,132.66,32.2]
[1742413435572,3.938,132.72,132.6,55.78440526]
[1742413435779,55.78440526,132.7,132.6,32.2]
[1742413435967,55.78440526,132.67,132.6,32.2]
[1742413436278,32.23159397,132.66,132.64,0.05157019]
[1742413436884,0.05159397,132.66,132.64,0.05157019]
[1742413437771,280.9,132.65,132.56,125.3269519]
[1742413437972,280.9,132.65,132.53,31.33173797]
[1742413437973,63.71550526,132.64,132.53,31.33173797]
[1742413438269,7.5417,132.58,132.54,32.18]
[1742413438471,32.18,132.6,132.53,38.87603797]
[1742413438674,32.18,132.6,132.53,31.33173797]
[1742413438880,2.359e-05,132.58,132.55,0.0537339]
[1742413439080,2.359e-05,132.58,132.57,55.78440526]
[1742413439280,248.72,132.65,132.57,55.78440526]
[1742413439477,248.72,132.65,132.61,7.5396]
[1742413439679,248.72,132.65,132.61,32.18]
[1742413439874,248.72,132.65,132.59,32.18]
[1742413440180,0.05153245,132.64,132.62,0.05053976]
[1742413440480,0.05153245,132.64,132.62,32.25053976]
[1742413440680,0.05153245,132.64,132.63,7.5388]
[1742413440982,3.245e-05,132.64,132.63,7.5388]
[1742413441876,3.245e-05,132.64,132.63,63.32320526]
[1742413442080,3.245e-05,132.64,132.63,70.86320526]
[1742413442674,3.245e-05,132.64,132.63,63.32320526]
[1742413442877,3.245e-05,132.64,132.63,7.5388]
[1742413444379,3.245e-05,132.64,132.63,63.32320526]
[1742413444577,3.245e-05,132.64,132.63,70.86320526]
[1742413444883,3.9984,132.71,132.63,63.32440526]
[1742413445083,8.0087,132.74,132.66,55.78440526]
[1742413445288,4.2559,132.77,132.69,55.78440526]
[1742413445472,4.2559,132.77,132.76,7.5314]
[1742413445874,7.9809,132.83,132.75,87.96440526]
[1742413446074,0.05385135,132.78,132.75,32.23595295]
[1742413446275,0.05385135,132.78,132.75,32.18]
[1742413446476,5.135e-05,132.78,132.77,7.5309]
[1742413446786,31.11073652,132.84,132.77,55.78440526]
[1742413446982,31.11073652,132.84,132.83,7.5275]
[1742413447183,31.11073652,132.84,132.83,39.7075]
[1742413447586,46.80873652,132.89,132.84,7.5264]
[1742413447885,39.28453652,132.89,132.83,32.18]
[1742413448087,0.0503798,132.88,132.85,0.05401767]
[1742413449288,0.0503798,132.88,132.86,32.18]
[1742413449484,0.0503798,132.88,132.87,7.5252]
[1742413450188,7.98e-05,132.88,132.87,7.5252]
[1742413452278,55.78440526,133.0,132.87,7.52]
[1742413452479,8.2753,132.99,132.86,55.78440526]
[1742413452680,8.2753,132.99,132.87,32.14]
[1742413452879,55.78440526,132.97,132.87,32.14]
[1742413453384,0.0548007,132.93,132.91,0.05569262]
[1742413453581,0.0548007,132.93,132.91,32.19569262]
[1742413454590,0.0548007,132.93,132.83,304.32440526]
[1742413454786,0.0548007,132.93,132.84,32.14]
[1742413454983,3.9749,132.93,132.84,32.14]
[1742413455183,3.9749,132.93,132.86,7.5254]
[1742413455385,3.9749,132.93,132.86,32.14]
[1742413455784,0.05246316,132.91,132.88,0.04963538]
[1742413455989,8.0796,132.99,132.89,336.34440526]
[1742413456191,55.78440526,133.07,132.96,55.78440526]
[1742413456391,7.516,133.04,132.97,32.12]
[1742413456586,87.90440526,133.04,132.97,32.12]
[1742413457189,0.05307926,133.02,132.99,0.05229097]
[1742413458692,0.05307926,133.02,132.99,7.57039097]
[1742413459195,0.05307926,133.02,132.99,0.05229097]
[1742413459795,0.05307926,133.02,132.99,7.57019097]
[1742413460097,0.05307926,133.02,132.99,0.05229097]
[1742413460797,7.5175,133.01,132.99,0.05229097]
[1742413460996,11.3719,133.01,132.95,39.6206]
[1742413461197,3.8607,133.0,132.95,39.6206]
[1742413461989,11.3787,133.0,132.95,32.1]
[1742413462195,0.05326015,132.99,132.96,0.04924637]
[1742413463294,0.05326015,132.99,132.98,7.519]
[1742413463494,0.05326015,132.99,132.98,39.599]
[1742413463894,0.05326015,132.99,132.98,32.08]
[1742413464098,0.05326015,132.99,132.96,0.04924637]
[1742413464700,7.57166015,132.99,132.96,0.04924637]
[1742413464899,0.05326015,132.99,132.96,0.04924637]
[1742413466106,0.05326015,132.99,132.96,7.56894637]
[1742413466301,0.05326015,132.99,132.96,0.04924637]
[1742413466502,0.05326015,132.99,132.96,32.12924637]
[1742413466805,0.05326015,132.99,132.98,7.519]
[1742413469201,3.9052,133.04,133.03,7.5161]
[1742413469398,8.2648,133.06,133.03,7.5161]
[1742413469606,8.2648,133.06,133.01,32.08]
[1742413469807,87.86440526,133.05,132.97,32.08]
[1742413470304,0.05624183,133.02,133.0,0.04814724]
[1742413470504,87.90064709,133.02,132.95,32.08]
[1742413470705,4.1233,133.01,132.95,32.08]
[1742413471010,4.1233,133.01,132.95,39.6004]
[1742413471199,4.1233,133.01,132.95,32.08]
[1742413471707,0.05624316,132.99,132.97,0.05575135]
[1742413475503,7.57504316,132.99,132.97,0.05575135]
[1742413475709,0.05624316,132.99,132.97,0.05575135]
[1742413475907,0.05624316,132.99,132.97,32.11575135]
[1742413476107,7.57514316,132.99,132.97,32.11575135]
[1742413476298,0.05624316,132.99,132.97,0.05575135]
[1742413476505,0.05624316,132.99,132.93,32.06]
[1742413476807,32.06,133.0,132.93,32.06]
[1742413477010,34.20699586,132.99,132.93,32.06]
[1742413477407,3.8975,132.98,132.93,32.06]
[1742413477607,0.05298607,132.97,132.95,0.05019763]
[1742413478203,66.26699586,132.96,132.85,248.18]
[1742413478404,66.26699586,132.96,132.86,32.06]
[1742413479006,7.5222,132.93,132.86,32.06]
[1742413479202,66.26699586,132.96,132.86,32.06]
[1742413479412,0.04963381,132.91,132.88,0.05172751]
[1742413479908,4.19363381,132.91,132.88,0.05321175]
[1742413480107,7.5245,132.89,132.88,0.05321175]
[1742413480308,4.19363381,132.91,132.88,0.05321175]
[1742413480612,4.19363381,132.91,132.88,7.57751175]
[1742413480813,0.04963381,132.91,132.88,7.57751175]
[1742413481003,0.04963381,132.91,132.88,0.05321175]
[1742413482007,0.04963381,132.91,132.9,7.5235]
[1742413482202,0.04963381,132.91,132.9,39.5635]
[1742413482409,0.04963381,132.91,132.9,7.5235]
[1742413482605,0.04963381,132.91,132.9,39.5835]
[1742413484111,3.381e-05,132.91,132.9,39.5835]
[1742413486116,248.18,132.97,132.96,7.5201]
[1742413486313,280.26,133.02,132.93,32.04]
[1742413486818,7.5184,132.99,132.93,32.04]
[1742413487219,280.26,133.02,132.93,32.04]
[1742413487421,0.05658889,132.97,132.95,0.05134394]
[1742413489722,7.57628889,132.97,132.95,0.05134394]
[1742413490121,0.05658889,132.97,132.95,0.05134394]
[1742413491922,7.57648889,132.97,132.95,0.05134394]
[1742413492519,0.05658889,132.97,132.95,0.05134394]
[1742413493725,0.05658889,132.97,132.95,7.57184394]
[1742413494127,0.05658889,132.97,132.95,0.05134394]
[1742413494922,0.05658889,132.97,132.95,7.57174394]
[1742413495125,0.05658889,132.97,132.95,0.05134394]
[1742413495322,0.05658889,132.97,132.95,32.09134394]
[1742413495630,0.05658889,132.97,132.96,7.5201]
[1742413496327,0.05658889,132.97,132.95,0.05134394]
[1742413496528,7.57618889,132.97,132.95,0.05134394]
[1742413496717,0.05658889,132.97,132.95,0.05134394]
[1742413497230,7.57648889,132.97,132.95,0.05134394]
[1742413497833,0.05658889,132.97,132.95,0.05134394]
[1742413498334,0.05658889,132.97,132.96,7.5201]
[1742413500233,0.05658889,132.97,132.95,7.57174394]
[1742413500526,0.05658889,132.97,132.95,0.05134394]
[1742413500727,7.5209,132.95,132.86,34.44619586]
[1742413500926,8.3077,132.96,132.91,7.5225]
[1742413501134,288.5077,132.96,132.91,7.5225]
[1742413501730,288.5077,132.96,132.88,32.02]
[1742413501934,0.05426836,132.95,132.92,0.05167798]
[1742413502737,0.05426836,132.95,132.93,7.5214]
[1742413503237,0.05426836,132.95,132.92,0.05167798]
[1742413505138,32.02,132.94,132.88,7.5243]
[1742413505530,7.5229,132.92,132.88,7.5243]
[1742413505731,7.5229,132.92,132.89,7.524]
[1742413505937,32.02,132.94,132.86,32.02]
[1742413506137,7.5226,132.92,132.86,32.02]
[1742413506337,0.05029701,132.91,132.89,0.05412244]
[1742413506835,0.05029701,132.91,132.9,7.5235]
[1742413508133,248.22,132.97,132.89,66.2811183]
[1742413508333,3.8939,133.01,132.92,34.20699586]
[1742413508533,3.8939,133.01,132.99,7.5181]
[1742413508731,3.8939,133.01,132.96,32.02]
[1742413509131,11.4115,133.01,132.97,0.0536637]
[1742413509337,0.05262948,133.0,132.97,0.0536637]
[1742413509733,7.519,132.98,132.97,0.0536637]
[1742413510238,39.59072948,133.0,132.97,0.0536637]
[1742413510438,4.1883,132.99,132.97,0.0536637]
[1742413511333,11.7072,132.99,132.97,0.0536637]
[1742413511533,0.05262948,133.0,132.97,0.0536637]
[1742413511534,2.948e-05,133.0,132.97,0.0536637]
[1742413511741,2.948e-05,133.0,132.99,7.5184]
[1742413511934,2.948e-05,133.0,132.99,39.5184]
[1742413513137,2.948e-05,133.0,132.97,0.0536637]
[1742413513643,2.948e-05,133.0,132.97,32.0536637]
[1742413513937,2.948e-05,133.0,132.99,7.5184]
[1742413519535,4.1266,133.06,132.99,7.5184]
[1742413519536,264.0036,133.07,132.99,7.52]
[1742413519842,256.4897,133.07,133.0,31.98]
[1742413520043,7.5153,133.05,133.01,7.5173]
[1742413520648,0.04920525,133.04,133.02,0.0476019]
[1742413521132,0.04920525,133.04,133.02,7.5642019]
[1742413521339,0.04920525,133.04,133.02,0.0476019]
[1742413521844,0.04920525,133.04,133.02,7.5641019]
[1742413522144,0.04920525,133.04,133.02,0.0476019]
[1742413522444,0.04920525,133.04,133.0,31.98]
[1742413522445,34.20699586,133.03,132.94,31.98]
[1742413522639,36.0324,133.02,132.93,31.98]
[1742413522838,7.5188,132.99,132.95,7.5204]
[1742413523038,248.1,133.01,132.93,31.98]
[1742413523238,248.1,133.01,132.91,75.88855841]
[1742413523446,0.05396063,132.98,132.97,7.5195]
[1742413524338,0.05396063,132.98,132.96,0.050083]
[1742413524836,6.063e-05,132.98,132.97,39.4995]
[1742413525039,6.063e-05,132.98,132.97,73.70649586]
[1742413525234,256.473,133.07,133.01,7.5169]
[1742413525448,256.473,133.07,133.01,39.4969]
[1742413525744,7.5153,133.05,133.01,31.98]
[1742413525941,256.473,133.07,133.02,7.5164]
[1742413526247,256.473,133.07,133.01,31.98]
[1742413526445,0.05484152,133.06,133.05,7.5147]
[1742413526840,0.05484152,133.06,133.04,31.98]
[1742413527841,0.05484152,133.06,133.05,7.515]
[1742413528243,0.05484152,133.06,133.04,31.98]
[1742413529146,7.56954152,133.06,133.04,31.98]
[1742413529346,0.05484152,133.06,133.04,31.98]
[1742413529541,0.05484152,133.06,133.04,39.4952]
[1742413529741,0.05484152,133.06,133.04,31.98]
[1742413530246,0.05484152,133.06,133.03,0.04882859]
[1742413530445,0.05484152,133.06,132.93,49.25039586]
[1742413530446,32.01484152,133.06,132.94,359.1345]
[1742413530653,66.16699586,133.06,132.97,7.5193]
[1742413530945,7.5176,133.01,132.97,7.5193]
[1742413531248,66.16699586,133.03,132.92,10.34982458]
[1742413531438,38.47439586,133.0,132.92,10.34982458]
[1742413531643,280.09093136,132.99,132.96,0.05415386]
[1742413531845,280.09093136,132.99,132.92,17.87192458]
[1742413532047,280.09093136,132.99,132.92,10.34982458]
[1742413532242,314.29792722,132.99,132.92,10.34982458]
[1742413532445,7.5215,132.94,132.92,10.34982458]
[1742413532750,31.96,132.96,132.91,114.88303924]
[1742413532947,282.28699586,132.99,132.92,0.05391739]
[1742413532948,0.05624282,132.94,132.92,0.05391739]
[1742413533150,31.96,132.96,132.92,0.05391739]
[1742413533352,0.05608991,132.94,132.92,0.05391739]
[1742413533555,0.05608991,132.94,132.91,114.88303924]
[1742413533748,0.05608991,132.94,132.88,31.96]
[1742413533954,0.05608991,132.94,132.89,34.20699586]
[1742413534350,0.05608991,132.94,132.92,34.20699586]
[1742413534549,0.05608991,132.94,132.93,31.96]
[1742413534749,0.05608991,132.94,132.93,39.4818]
[1742413535353,248.08,132.99,132.98,7.519]
[1742413535566,248.12,133.04,132.96,31.96]
[1742413535747,280.08,133.04,132.97,31.96]
[1742413535953,248.12,133.04,133.01,7.517]
[1742413536155,248.12,133.04,133.0,31.96]
[1742413536558,0.05023621,133.03,133.01,0.04817334]
[1742413537862,0.05023621,133.03,133.02,7.5167]
[1742413538161,0.05023621,133.03,133.01,0.04817334]
[1742413538363,0.05023621,133.03,133.02,7.5167]
[1742413539868,0.05023621,133.03,133.01,0.04817334]
[1742413542464,0.05023621,133.03,133.02,7.5167]
[1742413542663,0.05023621,133.03,133.01,0.04817334]
[1742413542965,0.05023621,133.03,133.01,7.56517334]
[1742413543262,0.05023621,133.03,133.01,0.04817334]
[1742413543665,7.56663621,133.03,133.01,0.04817334]
[1742413544064,0.05023621,133.03,133.02,7.5167]
[1742413544364,0.05023621,133.03,133.01,0.04817334]
[1742413545261,7.5167,133.02,133.01,0.04817334]
[1742413546562,7.5177,133.01,132.96,31.94]
[1742413546758,31.94,133.02,132.95,31.94]
[1742413546959,36.107,133.02,132.95,39.4602]
[1742413547163,7.5188,132.99,132.95,39.4602]
[1742413547766,0.05736045,132.98,132.96,0.04819748]
[1742413548363,0.05736045,132.98,132.91,31.94]
[1742413548662,0.05736045,132.98,132.89,31.94]
[1742413548663,248.1,132.97,132.89,31.94]
[1742413548862,31.94,132.96,132.89,7.5238]
[1742413549065,36.0974,132.96,132.89,7.5238]
[1742413549469,0.05050087,132.94,132.91,0.05186757]
[1742413549669,31.94,132.93,132.91,0.05186757]
[1742413549967,31.94,132.93,132.88,31.33173797]
[1742413550266,36.1619,132.93,132.88,31.33173797]
[1742413550770,31.94,132.93,132.88,31.33173797]
[1742413550968,31.94,132.93,132.9,7.5232]
[1742413551162,31.94,132.93,132.89,0.04994783]
[1742413552173,0.05050087,132.94,132.91,7.5226]
[1742413552362,0.05050087,132.94,132.89,0.04994783]
[1742413552762,8.7e-07,132.94,132.91,34.20699586]
[1742413552968,252.2733,133.03,132.91,34.20699586]
[1742413553168,248.16,133.03,133.02,7.5167]
[1742413553362,248.16,133.03,133.0,31.94]
[1742413554267,0.05698888,133.03,133.02,7.5167]
[1742413555262,0.05698888,133.03,133.0,31.99547333]
[1742413555964,0.05698888,133.03,133.0,0.05547333]
[1742413557873,0.05698888,133.03,133.01,7.5173]
[1742413558171,0.05698888,133.03,133.0,0.05547333]
[1742413559170,0.05698888,133.03,133.0,7.57297333]
[1742413559471,0.05698888,133.03,133.0,0.05547333]
[1742413560573,0.05698888,133.03,132.97,31.92]
[1742413560777,7.5176,133.01,132.97,31.92]
[1742413560970,31.92,133.05,132.97,31.92]
[1742413561470,34.20699586,133.04,132.93,34.20699586]
[1742413561676,0.05263392,133.02,133.0,0.05542741]
[1742413561880,31.92,133.01,132.95,31.92]
[1742413562075,36.0527,133.01,132.95,31.92]
[1742413562780,7.5204,132.96,132.93,31.92]
[1742413563080,248.14,132.96,132.88,114.88303924]
[1742413563268,7.5212,132.95,132.93,0.05103298]
[1742413563475,248.14,132.96,132.93,0.05103298]
[1742413563675,0.04769191,132.95,132.93,0.05103298]
[1742413564267,0.04769191,132.95,132.93,7.57233298]
[1742413564473,0.04769191,132.95,132.93,0.05103298]
[1742413565481,0.04769191,132.95,132.94,7.5212]
[1742413566177,4.1327,133.01,132.98,7.5186]
[1742413566376,4.1327,133.01,132.96,31.9]
[1742413566572,4.1327,133.01,132.96,66.12699586]
[1742413566875,4.2516,133.03,133.01,7.517]
[1742413567081,4.2516,133.03,132.99,31.92]
[1742413567282,4.2516,133.03,133.0,7.5174]
[1742413567581,0.0570306,133.02,133.0,0.0563868]
[1742413567775,0.0570306,133.02,133.01,7.5168]
[1742413568980,0.0570306,133.02,133.0,0.0563868]
[1742413571580,0.0570306,133.02,133.0,7.5741868]
[1742413571791,0.0570306,133.02,133.0,0.0563868]
[1742413572783,31.9570306,133.02,132.94,31.9]
[1742413572985,7.5187,132.99,132.94,31.9]
[1742413573184,251.9994,133.01,132.94,39.4211]
[1742413573487,3.9355,133.0,132.94,7.5211]
[1742413573791,31.9,132.99,132.95,7.5204]
[1742413574083,0.05039181,132.98,132.96,0.05171668]
[1742413574488,0.05039181,132.98,132.96,7.57151668]
[1742413574987,0.05039181,132.98,132.97,7.5195]
[1742413576486,0.05039181,132.98,132.96,7.57151668]
[1742413576784,0.05039181,132.98,132.96,0.05171668]
[1742413578290,0.05039181,132.98,132.97,7.5195]
[1742413579287,0.05039181,132.98,132.96,7.57151668]
[1742413579492,0.05039181,132.98,132.96,0.05171668]
[1742413581888,0.05039181,132.98,132.96,31.93171668]
[1742413582107,9.181e-05,132.98,132.97,7.5195]
[1742413584193,9.181e-05,132.98,132.97,41.72649586]
[1742413584397,4.0069,133.05,132.97,41.72699586]
[1742413584590,4.0069,133.05,132.97,34.20699586]
[1742413584798,4.0069,133.05,132.99,7.5181]
[1742413584985,4.0069,133.05,132.99,31.88]
[1742413585392,4.0069,133.05,132.99,39.3981]
[1742413585596,0.04967959,133.03,133.01,0.05094655]
[1742413586692,0.04967959,133.03,133.01,7.56824655]
[1742413586896,0.04967959,133.03,133.01,0.05094655]
[1742413587398,7.56967959,133.03,132.9,52.35286078]
[1742413587589,34.20699586,133.01,132.89,8.0557]
[1742413587789,7.521,132.95,132.91,7.5227]
[1742413587994,31.88,132.96,132.89,31.88]
[1742413588195,284.1296,133.0,132.89,31.88]
[1742413588497,0.05662982,132.96,132.93,0.0530973]
[1742413588698,0.05662982,132.96,132.93,31.9330973]
[1742413589188,0.05662982,132.96,132.95,7.5207]
[1742413589388,0.05662982,132.96,132.93,0.0530973]
[1742413590304,0.05662982,132.96,132.93,7.5745973]
[1742413590695,7.5212,132.94,132.93,0.0530973]
[1742413590901,4.27272982,132.96,132.93,0.0530973]
[1742413592002,0.05662982,132.96,132.93,0.0530973]
[1742413592299,0.05662982,132.96,132.94,7.5212]
[1742413592499,0.05662982,132.96,132.93,0.0530973]
[1742413593896,0.05662982,132.96,132.94,7.5208]
[1742413594102,0.05662982,132.96,132.93,0.0530973]
[1742413595002,0.05662982,132.96,132.94,7.5208]
[1742413595302,0.05662982,132.96,132.93,0.0530973]
[1742413595498,0.05662982,132.96,132.95,7.5207]
[1742413595701,2.982e-05,132.96,132.95,39.3807]
[1742413595997,2.982e-05,132.96,132.95,31.86]
[1742413596202,2.982e-05,132.96,132.94,7.521]
[1742413596503,2.982e-05,132.96,132.93,0.0530973]
[1742413596705,7.52042982,132.96,132.93,0.0530973]
[1742413597104,7.5207,132.95,132.93,0.0530973]
[1742413597302,2.982e-05,132.96,132.93,0.0530973]
[1742413597599,11.50142982,132.96,132.93,0.0530973]
[1742413597798,3.98092982,132.96,132.93,0.0530973]
[1742413598803,3.98092982,132.96,132.93,7.5746973]
[1742413599004,3.98092982,132.96,132.93,0.0530973]
[1742413599309,3.98092982,132.96,132.94,7.5209]
[1742413599808,3.98092982,132.96,132.95,7.5207]
[1742413600206,3.98092982,132.96,132.93,0.0530973]
[1742413600809,2.982e-05,132.96,132.93,0.0530973]
[1742413601402,2.982e-05,132.96,132.93,7.5745973]
[1742413601603,2.982e-05,132.96,132.93,0.0530973]
[1742413602005,2.982e-05,132.96,132.93,7.5743973]
[1742413602303,2.982e-05,132.96,132.93,0.0530973]
[1742413603011,31.86002982,132.96,132.93,0.0530973]
[1742413603224,31.86002982,132.96,132.93,7.5744973]
[1742413603424,35.71902982,132.96,132.93,7.5744973]
[1742413603619,35.71902982,132.96,132.93,0.0530973]
[1742413604324,3.85902982,132.96,132.95,7.5207]
[1742413604625,2.982e-05,132.96,132.95,7.5207]
[1742413605319,2.982e-05,132.96,132.95,41.72769586]
[1742413605527,3.9847,133.03,132.95,49.24769586]
[1742413605824,45.92958703,133.05,132.96,31.86]
[1742413606016,45.92958703,133.05,133.03,7.5159]
[1742413606326,14.06958703,133.05,132.99,31.86]
[1742413606518,14.06958703,133.05,133.04,7.5156]
[1742413607317,10.16498703,133.05,133.04,7.5156]
[1742413608322,8.703e-05,133.05,133.04,7.5156]
[1742413608924,8.703e-05,133.05,133.04,41.72259586]
[1742413609229,192.08081015,133.08,133.04,41.72699586]
[1742413609427,31.2576507,133.13,133.07,34.20699586]
[1742413609626,31.2576507,133.13,133.12,7.5111]
[1742413609824,31.2576507,133.13,133.12,31.84]
[1742413610526,31.2576507,133.13,133.11,0.05482697]
[1742413612233,0.04889945,133.14,133.12,60.45384571]
[1742413612820,0.04889945,133.14,133.12,47.63664571]
[1742413613033,31.86889945,133.14,133.12,34.82024571]
[1742413613528,0.04889945,133.14,133.11,0.05482697]
[1742413615129,7.55929945,133.14,133.11,0.05482697]
[1742413615332,0.04889945,133.14,133.11,0.05482697]
[1742413616225,7.5106,133.13,133.11,0.05482697]
[1742413616529,31.82,133.13,132.94,1.30736142]
[1742413616727,39.3307,133.13,133.05,31.82]
[1742413617026,279.84,133.15,133.05,31.82]
[1742413617226,7.5106,133.13,133.05,39.3347]
[1742413617429,279.84,133.15,133.05,31.82]
[1742413617823,0.05728733,133.11,133.09,0.05505978]
[1742413620133,7.5122,133.1,133.09,0.05505978]
[1742413620328,0.05728733,133.11,133.02,248.16]
[1742413620528,31.8,133.12,133.03,31.8]
[1742413621543,0.05575761,133.09,133.06,0.04804487]
[1742413621736,7.5139,133.07,133.06,0.04804487]
[1742413622641,0.05575761,133.09,133.06,0.04804487]
[1742413623337,31.85575761,133.09,133.06,0.04804487]
[1742413624047,34.20699586,133.07,132.99,42.13226729]
[1742413624347,7.5153,133.05,132.99,42.13226729]
[1742413624844,31.8,133.06,132.99,42.13226729]
[1742413625047,0.05475042,133.03,133.01,0.05283546]
[1742413628141,247.98,133.09,133.01,0.05283546]
[1742413628349,247.98,133.09,133.0,31.8]
[1742413628540,7.5131,133.09,133.0,31.8]
[1742413628740,7.9789,133.11,133.0,31.8]
[1742413629045,7.9789,133.11,133.02,7.5162]
[1742413629246,7.9789,133.11,133.03,31.8]
[1742413629436,7.56195922,133.08,133.05,0.05240482]
[1742413629641,0.04825922,133.08,133.05,0.05240482]
[1742413630142,0.04825922,133.08,133.05,7.56700482]
[1742413630344,0.04825922,133.08,133.05,0.05240482]
[1742413633351,0.04825922,133.08,133.05,7.56700482]
[1742413633850,0.04825922,133.08,133.06,31.78]
[1742413634745,248.0,133.14,133.06,31.78]
[1742413634945,247.98,133.19,133.06,65.98699586]
[1742413635250,7.5078,133.18,133.09,34.20699586]
[1742413635454,247.98,133.19,133.1,35.8698]
[1742413635946,0.05727734,133.16,133.13,0.04942159]
[1742413636549,0.05727734,133.16,133.14,7.5097]
[1742413636944,0.05727734,133.16,133.13,0.04942159]
[1742413637645,34.20699586,133.23,133.18,7.5074]
[1742413637947,247.98,133.25,133.18,31.78]
[1742413638346,247.98,133.25,133.19,7.5068]
[1742413638541,247.98,133.25,133.18,31.78]
[1742413638845,7.5062,133.21,133.2,0.05128254]
[1742413639147,66.04050683,133.23,133.16,31.78]
[1742413639352,4.2432,133.22,133.16,31.78]
[1742413639551,7.5068,133.2,133.14,31.78]
[1742413640053,7.5063,133.21,133.14,31.78]
[1742413640252,0.05414731,133.18,133.16,0.05108367]
[1742413642755,0.05414731,133.18,133.17,31.76]
[1742413643448,38.36449586,133.26,133.17,31.76]
[1742413643648,35.51364551,133.29,133.17,35.652]
[1742413643851,7.9666,133.33,133.24,34.20699586]
[1742413644050,7.9666,133.33,133.25,31.76]
[1742413644254,7.9666,133.33,133.25,35.652]
[1742413644449,7.5025,133.28,133.25,35.652]
[1742413644755,0.05310585,133.3,133.28,0.05617039]
[1742413644954,0.05310585,133.3,133.25,0.05306535]
[1742413645250,0.05310585,133.3,133.23,31.76]
[1742413645454,0.05310585,133.3,133.26,0.05326692]
[1742413645655,31.74,133.29,133.26,0.05326692]
[1742413646254,0.05310585,133.3,133.26,31.79326692]
[1742413646759,7.5019,133.29,133.26,31.79326692]
[1742413646957,0.05310585,133.3,133.26,31.79326692]
[1742413647258,7.5018,133.29,133.26,31.79326692]
[1742413647562,0.05310585,133.3,133.26,31.79326692]